bitfinex-derivatives/quotes_SOLF0:USTF0_20260118
["timestamp","ask_amount","ask_price","bid_price","bid_amount"]
[1768732225054,5.36398869,142.24,142.2,3.12672353]
[1768732225250,3.05828275,142.25,142.2,3.12672353]
[1768732225549,5.36399523,142.24,142.2,3.12672353]
[1768732225844,3.05828275,142.25,142.2,3.12672353]
[1768732226048,5.36399523,142.24,142.2,3.12672353]
[1768732226343,3.05828275,142.25,142.2,3.12672353]
[1768732226548,5.36400316,142.24,142.2,3.12672353]
[1768732226752,3.05828275,142.25,142.2,3.12672353]
[1768732226956,5.36400316,142.24,142.2,3.12672353]
[1768732227154,3.05828275,142.25,142.2,3.12672353]
[1768732227356,5.36401252,142.24,142.2,3.12672353]
[1768732227558,3.05828275,142.25,142.2,3.12672353]
[1768732227758,5.36401854,142.24,142.2,3.12672353]
[1768732228055,3.05828275,142.25,142.2,3.12672353]
[1768732228254,5.36402795,142.24,142.2,3.12672353]
[1768732228458,3.05828275,142.25,142.2,3.12672353]
[1768732228658,5.36402948,142.24,142.2,3.12672353]
[1768732228858,3.05828275,142.25,142.2,3.12672353]
[1768732229064,5.36402948,142.24,142.2,3.12672353]
[1768732229256,3.05828275,142.25,142.2,3.12672353]
[1768732229456,5.36404213,142.24,142.2,3.12672353]
[1768732229658,3.05828275,142.25,142.2,3.12672353]
[1768732229958,5.36404213,142.24,142.2,3.12672353]
[1768732230158,3.05828275,142.25,142.2,3.12672353]
[1768732230358,5.36407618,142.24,142.2,3.12672353]
[1768732230560,3.05828275,142.25,142.2,3.12672353]
[1768732230758,5.36407618,142.24,142.2,3.12672353]
[1768732230959,3.05828275,142.25,142.2,3.12672353]
[1768732231161,5.36407618,142.24,142.2,3.12672353]
[1768732231358,3.05828275,142.25,142.2,3.12672353]
[1768732231659,5.36411754,142.24,142.2,3.12672353]
[1768732231859,3.05828275,142.25,142.2,3.12672353]
[1768732232059,5.36411754,142.24,142.2,3.12672353]
[1768732232256,3.05828275,142.25,142.2,3.12672353]
[1768732232460,5.36411088,142.24,142.2,3.12672353]
[1768732232663,3.05828275,142.25,142.2,3.12672353]
[1768732232960,5.36411088,142.24,142.2,3.12672353]
[1768732233260,3.05828275,142.25,142.2,3.12672353]
[1768732233458,5.36411048,142.24,142.2,3.12672353]
[1768732233660,3.05828275,142.25,142.2,3.12672353]
[1768732233863,5.36411048,142.24,142.2,3.12672353]
[1768732234167,3.05828275,142.25,142.2,3.12672353]
[1768732234359,5.36412772,142.24,142.2,3.12672353]
[1768732234563,3.05828275,142.25,142.2,3.12672353]
[1768732234867,5.36412772,142.24,142.21,3.23382847]
[1768732235071,3.22216512,142.27,142.21,3.23382847]
[1768732235370,5.36510884,142.26,142.21,3.23382847]
[1768732235562,3.22216512,142.27,142.21,3.23382847]
[1768732235763,5.33932855,142.26,142.21,3.23382847]
[1768732235958,3.22216512,142.27,142.21,3.23382847]
[1768732236162,5.33932855,142.26,142.21,3.23382847]
[1768732236370,3.22216512,142.27,142.21,3.23382847]
[1768732236570,5.33802435,142.26,142.21,3.23382847]
[1768732236773,3.22216512,142.27,142.22,6.3303]
[1768732237071,5.33802435,142.26,142.22,6.3303]
[1768732237258,3.22216512,142.27,142.22,6.3303]
[1768732237463,5.33709042,142.26,142.22,6.3303]
[1768732237763,3.22216512,142.27,142.22,6.3303]
[1768732238059,5.33709042,142.26,142.22,6.3303]
[1768732238261,3.22216512,142.27,142.22,6.3303]
[1768732238470,5.33633177,142.26,142.22,6.3303]
[1768732238664,3.22216512,142.27,142.22,6.3303]
[1768732238865,5.33633177,142.26,142.22,6.3303]
[1768732239071,3.22216512,142.27,142.22,6.3303]
[1768732253069,4.99477962,142.27,142.22,6.3303]
[1768732253372,3.02384771,142.26,142.22,6.3303]
[1768732260571,5.32208796,142.25,142.22,6.3303]
[1768732260772,3.02384771,142.26,142.22,6.3303]
[1768732260975,5.32215473,142.25,142.22,6.3303]
[1768732261177,4.79646221,142.26,142.22,6.3303]
[1768732261376,5.32220897,142.25,142.22,6.3303]
[1768732261580,4.79646221,142.26,142.22,6.3303]
[1768732261880,5.32218906,142.25,142.22,6.3303]
[1768732262182,4.79646221,142.26,142.22,6.3303]
[1768732262379,5.32243191,142.25,142.22,6.3303]
[1768732262675,4.79646221,142.26,142.22,6.3303]
[1768732262876,5.32243899,142.25,142.22,6.3303]
[1768732263172,4.79646221,142.26,142.22,6.3303]
[1768732263379,3.02384771,142.24,142.2,6.3309]
[1768732266883,3.02384771,142.24,142.21,6.3307]
[1768732267381,4.771e-05,142.24,142.21,6.3307]
[1768732269183,6.221e-05,142.24,142.21,6.3307]
[1768732270184,1.7726145,142.26,142.21,6.3307]
[1768732270389,5.32149979,142.25,142.21,6.3307]
[1768732270587,1.7726145,142.26,142.21,6.3307]
[1768732270782,5.32149979,142.25,142.21,6.3307]
[1768732271082,1.7726145,142.26,142.21,6.3307]
[1768732271383,5.32155479,142.25,142.21,6.3307]
[1768732271576,4.79658951,142.26,142.21,6.3307]
[1768732271778,5.32137427,142.25,142.21,6.3307]
[1768732271974,4.79658951,142.26,142.21,6.3307]
[1768732272271,5.32104327,142.25,142.21,6.3307]
[1768732272474,4.79658951,142.26,142.21,6.3307]
[1768732272676,5.32006323,142.25,142.21,6.3307]
[1768732272873,4.79658951,142.26,142.21,6.3307]
[1768732273082,5.32005727,142.25,142.21,6.3307]
[1768732273287,4.79658951,142.26,142.21,6.3307]
[1768732273584,5.31993612,142.25,142.21,6.3307]
[1768732273784,4.79658951,142.26,142.21,6.3307]
[1768732273985,5.32017513,142.25,142.21,6.3307]
[1768732274184,4.79658951,142.26,142.21,6.3307]
[1768732274385,5.32005605,142.25,142.21,6.3307]
[1768732274587,4.79658951,142.26,142.21,6.3307]
[1768732274886,5.32005605,142.25,142.21,6.3307]
[1768732275085,4.79658951,142.26,142.21,6.3307]
[1768732275385,5.32004301,142.25,142.21,6.3307]
[1768732275586,4.79658951,142.26,142.21,6.3307]
[1768732275781,5.31993897,142.25,142.21,6.3307]
[1768732275983,4.79658951,142.26,142.21,6.3307]
[1768732276182,5.31993897,142.25,142.21,6.3307]
[1768732276382,4.79658951,142.26,142.21,6.3307]
[1768732276582,5.31982384,142.25,142.21,6.3307]
[1768732276786,4.79658951,142.26,142.21,6.3307]
[1768732276987,5.31982384,142.25,142.21,6.3307]
[1768732277187,4.79658951,142.26,142.21,6.3307]
[1768732277487,5.31971061,142.25,142.21,6.3307]
[1768732277687,4.79658951,142.26,142.21,6.3307]
[1768732277890,5.31971061,142.25,142.21,6.3307]
[1768732278189,4.79658951,142.26,142.21,6.3307]
[1768732278491,5.31959923,142.25,142.2,9.61398649]
[1768732278787,5.31931279,142.24,142.2,9.61398649]
[1768732278988,3.02384771,142.25,142.2,9.61398649]
[1768732279188,5.31929261,142.24,142.2,9.61398649]
[1768732279387,3.02384771,142.25,142.2,9.61398649]
[1768732279588,5.31892715,142.24,142.2,9.61398649]
[1768732279788,3.02384771,142.25,142.2,9.61398649]
[1768732280087,5.31894366,142.24,142.2,9.61398649]
[1768732280289,3.02384771,142.25,142.2,9.61398649]
[1768732295213,5.31457622,142.24,142.2,9.61398649]
[1768732295410,3.02384771,142.25,142.2,9.61398649]
[1768732295611,5.31463221,142.24,142.2,9.61398649]
[1768732295801,3.02384771,142.25,142.2,9.61398649]
[1768732296007,5.31463221,142.24,142.2,9.61398649]
[1768732296308,3.02384771,142.25,142.2,9.61398649]
[1768732296611,5.31512071,142.24,142.2,9.61398649]
[1768732296908,3.02384771,142.25,142.2,9.61398649]
[1768732297206,5.31512071,142.24,142.2,9.61398649]
[1768732297411,3.02384771,142.25,142.2,9.61398649]
[1768732297705,5.3156829,142.24,142.2,9.61398649]
[1768732297905,3.02384771,142.25,142.2,9.61398649]
[1768732298113,5.3156829,142.24,142.2,9.61398649]
[1768732298314,3.02384771,142.25,142.2,9.61398649]
[1768732298611,5.31632819,142.24,142.2,9.61398649]
[1768732298811,3.02384771,142.25,142.2,9.61398649]
[1768732299007,5.31632819,142.24,142.2,9.61398649]
[1768732299206,3.02384771,142.25,142.2,9.61398649]
[1768732299414,5.31700161,142.24,142.2,9.61398649]
[1768732299613,3.02384771,142.25,142.2,9.61398649]
[1768732299913,5.31700161,142.24,142.2,9.61398649]
[1768732300111,3.02384771,142.25,142.2,9.61398649]
[1768732300302,5.31771852,142.24,142.2,9.61398649]
[1768732300508,3.02384771,142.25,142.2,9.61398649]
[1768732300713,5.31778305,142.24,142.2,3.28298649]
[1768732300908,3.02384771,142.25,142.15,3.30266935]
[1768732301101,5.31742698,142.24,142.19,3.30266935]
[1768732301306,3.29029663,142.27,142.21,3.30266935]
[1768732301504,5.3187936,142.26,142.21,3.30266935]
[1768732301805,5.3187936,142.25,142.21,3.30266935]
[1768732302005,5.3187936,142.24,142.21,3.30266935]
[1768732302202,3.29029663,142.27,142.21,3.30266935]
[1768732302417,5.31986747,142.26,142.21,3.30266935]
[1768732302721,5.31986747,142.25,142.21,3.30266935]
[1768732302905,5.31986747,142.24,142.21,3.30266935]
[1768732303104,3.29029663,142.27,142.21,3.30266935]
[1768732303313,5.32123633,142.26,142.21,3.30266935]
[1768732303519,5.32123633,142.25,142.21,3.30266935]
[1768732303814,5.32123633,142.24,142.21,3.30266935]
[1768732304014,3.29029663,142.27,142.21,3.30266935]
[1768732304215,5.32129483,142.26,142.21,3.30266935]
[1768732304409,5.32129483,142.25,142.21,3.30266935]
[1768732304611,5.32129483,142.24,142.21,3.30266935]
[1768732304810,3.29029663,142.27,142.21,3.30266935]
[1768732305017,5.32334297,142.26,142.21,3.30266935]
[1768732305211,5.32334297,142.25,142.21,3.30266935]
[1768732305411,5.32334297,142.24,142.21,3.30266935]
[1768732305611,3.29029663,142.27,142.21,3.30266935]
[1768732305808,5.32338645,142.26,142.21,3.30266935]
[1768732306006,5.32338645,142.25,142.21,3.30266935]
[1768732306206,5.32338645,142.24,142.21,3.30266935]
[1768732306407,3.29029663,142.27,142.21,3.30266935]
[1768732306610,5.32368892,142.26,142.21,3.30266935]
[1768732306819,5.32368892,142.25,142.21,3.30266935]
[1768732307118,5.32368892,142.24,142.21,3.30266935]
[1768732307318,3.29029663,142.27,142.21,3.30266935]
[1768732307508,5.32398459,142.26,142.21,3.30266935]
[1768732307714,5.32398459,142.25,142.21,3.30266935]
[1768732307915,5.32398459,142.24,142.21,3.30266935]
[1768732308114,3.29029663,142.27,142.21,3.30266935]
[1768732308312,5.32398459,142.26,142.21,3.30266935]
[1768732308615,5.32398459,142.25,142.21,3.30266935]
[1768732308815,5.32398459,142.24,142.21,3.30266935]
[1768732309015,3.29029663,142.27,142.21,3.30266935]
[1768732309216,5.32426884,142.26,142.21,3.30266935]
[1768732309417,5.32426884,142.25,142.21,3.30266935]
[1768732309619,5.32426884,142.24,142.21,3.30266935]
[1768732309820,3.29029663,142.27,142.21,3.30266935]
[1768732310118,5.32434708,142.26,142.21,3.30266935]
[1768732310316,5.32434708,142.25,142.21,3.30266935]
[1768732310516,5.32434708,142.24,142.21,3.30266935]
[1768732310717,5.32434708,142.23,142.21,3.30266935]
[1768732310921,3.29029663,142.27,142.21,3.30266935]
[1768732311120,5.33358033,142.26,142.21,3.30266935]
[1768732311319,5.33358033,142.25,142.21,3.30266935]
[1768732311513,5.33358033,142.24,142.21,3.30266935]
[1768732311715,5.33358033,142.23,142.21,3.30266935]
[1768732311916,3.29029663,142.27,142.21,3.30266935]
[1768732312117,5.33361885,142.26,142.21,3.30266935]
[1768732312420,5.33361885,142.25,142.21,3.30266935]
[1768732312717,5.33361885,142.24,142.21,3.30266935]
[1768732312914,5.33361885,142.23,142.21,3.30266935]
[1768732313120,3.29029663,142.27,142.21,3.30266935]
[1768732313319,5.3337265,142.26,142.21,3.30266935]
[1768732313523,5.3337265,142.25,142.21,3.30266935]
[1768732313723,5.3337265,142.24,142.21,3.30266935]
[1768732313924,5.3337265,142.23,142.21,3.30266935]
[1768732314115,3.29029663,142.27,142.21,3.30266935]
[1768732314321,8.45586427,142.26,142.21,3.30266935]
[1768732314525,5.33384891,142.25,142.21,3.30266935]
[1768732314725,5.33384891,142.24,142.21,3.30266935]
[1768732314927,5.33384891,142.23,142.21,3.30266935]
[1768732315130,3.12201536,142.26,142.21,3.30266935]
[1768732315330,5.33400492,142.25,142.21,3.30266935]
[1768732315532,5.33400492,142.24,142.21,3.30266935]
[1768732315726,5.33400492,142.23,142.21,3.30266935]
[1768732315927,3.12201536,142.26,142.21,3.30266935]
[1768732316133,5.33400492,142.25,142.21,3.30266935]
[1768732316333,5.33400492,142.24,142.21,3.30266935]
[1768732316634,5.33400492,142.23,142.21,3.30266935]
[1768732316830,3.12201536,142.26,142.21,3.30266935]
[1768732317031,5.33411297,142.25,142.21,3.30266935]
[1768732317331,5.33411297,142.24,142.21,3.30266935]
[1768732317532,5.33411297,142.23,142.21,3.30266935]
[1768732317738,6.3279,142.28,142.21,3.30266935]
[1768732317739,3.12201536,142.28,142.21,9.63326935]
[1768732318039,8.45629602,142.27,142.21,9.63326935]
[1768732318231,5.33428066,142.26,142.21,9.63326935]
[1768732318430,5.33428066,142.25,142.21,9.63326935]
[1768732318627,5.33428066,142.24,142.21,9.63326935]
[1768732318931,3.12201536,142.27,142.21,9.63326935]
[1768732319237,5.33418633,142.26,142.21,9.63326935]
[1768732319437,5.33418633,142.25,142.21,9.63326935]
[1768732319638,5.33418633,142.24,142.21,9.63326935]
[1768732319831,3.12201536,142.27,142.21,9.63326935]
[1768732320026,5.33405946,142.26,142.21,9.63326935]
[1768732320230,5.33405946,142.25,142.21,9.63326935]
[1768732320438,5.33405946,142.24,142.21,9.63326935]
[1768732320638,3.12201536,142.27,142.21,9.63326935]
[1768732320939,5.33438836,142.26,142.21,9.63326935]
[1768732321139,5.33438836,142.25,142.21,9.63326935]
[1768732321438,5.33438836,142.24,142.21,9.63326935]
[1768732321737,3.12201536,142.27,142.21,9.63326935]
[1768732321933,5.33417516,142.26,142.21,9.63326935]
[1768732322135,5.33417516,142.25,142.21,9.63326935]
[1768732322330,5.33417516,142.24,142.21,9.63326935]
[1768732322536,3.12201536,142.27,142.21,9.63326935]
[1768732322733,5.3342057,142.26,142.21,9.63326935]
[1768732322929,5.3342057,142.25,142.21,9.63326935]
[1768732323135,5.3342057,142.24,142.21,9.63326935]
[1768732323434,3.12201536,142.27,142.21,9.63326935]
[1768732323730,5.3341204,142.26,142.21,9.63326935]
[1768732323934,5.3341204,142.25,142.21,9.63326935]
[1768732324135,5.3341204,142.24,142.21,9.63326935]
[1768732324331,3.12201536,142.27,142.21,9.63326935]
[1768732324536,5.33384981,142.26,142.21,9.63326935]
[1768732324736,5.33384981,142.25,142.21,9.63326935]
[1768732325036,5.33384981,142.24,142.21,9.63326935]
[1768732325334,3.12201536,142.27,142.21,9.63326935]
[1768732325529,5.33398417,142.26,142.21,9.63326935]
[1768732325736,5.33398417,142.25,142.21,9.63326935]
[1768732325936,3.12201536,142.27,142.21,9.63326935]
[1768732326132,5.33387741,142.26,142.21,9.63326935]
[1768732326333,5.33387741,142.25,142.21,9.63326935]
[1768732326542,3.12201536,142.27,142.21,9.63326935]
[1768732326740,5.33334455,142.26,142.21,9.63326935]
[1768732326936,5.33334455,142.25,142.21,9.63326935]
[1768732327137,3.12201536,142.3,142.23,3.12649908]
[1768732327936,6.3269,142.3,142.21,3.12649908]
[1768732328144,3.12201536,142.29,142.21,3.12649908]
[1768732329736,3.12201536,142.28,142.21,9.45719908]
[1768732331948,3.12201536,142.28,142.21,3.12649908]
[1768732334647,3.12201536,142.27,142.21,3.12649908]
[1768732339152,5.30670083,142.26,142.21,3.12649908]
[1768732339352,5.30670083,142.25,142.21,3.12649908]
[1768732339550,5.30670083,142.24,142.21,3.12649908]
[1768732339752,3.12201536,142.27,142.21,3.12649908]
[1768732340051,5.30662427,142.26,142.21,3.12649908]
[1768732340251,5.30662427,142.25,142.21,3.12649908]
[1768732340451,5.30662427,142.24,142.21,3.12649908]
[1768732340652,3.12201536,142.27,142.21,3.12649908]
[1768732340848,5.29945072,142.26,142.21,3.12649908]
[1768732341053,5.29945072,142.25,142.21,3.12649908]
[1768732341254,5.29945072,142.24,142.21,3.12649908]
[1768732341454,9.45031536,142.27,142.21,3.12649908]
[1768732341653,5.29947061,142.26,142.21,3.12649908]
[1768732341848,5.29947061,142.25,142.21,3.12649908]
[1768732342056,5.29947061,142.24,142.21,3.12649908]
[1768732342252,9.45031536,142.27,142.21,3.12649908]
[1768732342453,5.29964881,142.26,142.21,3.12649908]
[1768732342657,5.29964881,142.25,142.21,3.12649908]
[1768732342956,5.29964881,142.24,142.21,3.12649908]
[1768732343255,9.45031536,142.27,142.21,3.12649908]
[1768732343451,5.29959079,142.26,142.21,3.12649908]
[1768732343656,5.29959079,142.25,142.21,3.12649908]
[1768732343848,5.29959079,142.24,142.21,3.12649908]
[1768732344151,6.3287,142.26,142.21,3.12649908]
[1768732344353,5.29974831,142.25,142.21,3.12649908]
[1768732344553,5.29974831,142.24,142.21,3.12649908]
[1768732344751,6.3287,142.26,142.21,3.12649908]
[1768732344951,5.2998043,142.25,142.21,3.12649908]
[1768732345256,5.2998043,142.24,142.21,3.12649908]
[1768732345558,6.3287,142.26,142.21,3.12649908]
[1768732345759,5.29987978,142.25,142.21,3.12649908]
[1768732345955,5.29987978,142.24,142.21,3.12649908]
[1768732346153,6.3287,142.26,142.21,3.12649908]
[1768732346349,5.2999262,142.25,142.21,3.12649908]
[1768732346553,5.2999262,142.24,142.21,3.12649908]
[1768732346750,6.3287,142.26,142.21,3.12649908]
[1768732346947,5.29998184,142.25,142.21,3.12649908]
[1768732347151,5.29998184,142.24,142.21,3.12649908]
[1768732347450,6.3287,142.26,142.21,3.12649908]
[1768732347653,5.30003228,142.25,142.21,3.12649908]
[1768732347849,6.3287,142.26,142.21,3.12649908]
[1768732347850,5.30003228,142.24,142.21,3.12649908]
[1768732348056,6.3287,142.26,142.21,3.12649908]
[1768732348256,5.30009886,142.25,142.21,3.12649908]
[1768732348454,6.3287,142.26,142.21,3.12649908]
[1768732348653,5.30010476,142.25,142.21,3.12649908]
[1768732348954,6.3287,142.26,142.21,3.12649908]
[1768732349154,5.30010841,142.25,142.21,3.12649908]
[1768732349448,6.3287,142.26,142.21,3.12649908]
[1768732349647,5.30012588,142.25,142.21,3.12649908]
[1768732349949,6.3287,142.26,142.21,3.12649908]
[1768732350148,5.30012588,142.25,142.21,3.12649908]
[1768732350351,3.12201536,142.27,142.21,3.12649908]
[1768732350552,5.30026687,142.26,142.21,3.12649908]
[1768732350752,5.30026687,142.25,142.21,3.12649908]
[1768732351056,6.3281,142.28,142.21,3.12649908]
[1768732351252,5.30065848,142.27,142.21,3.12649908]
[1768732351454,5.30065848,142.26,142.21,3.12649908]
[1768732351662,9.4678958,142.28,142.21,3.12649908]
[1768732351959,5.30019192,142.27,142.21,3.12649908]
[1768732352151,5.30019192,142.26,142.21,3.12649908]
[1768732352351,9.4678958,142.28,142.21,3.12649908]
[1768732352649,5.29981298,142.27,142.21,3.12649908]
[1768732352850,5.29981298,142.26,142.21,3.12649908]
[1768732353054,9.4678958,142.28,142.21,3.12649908]
[1768732353251,5.29981298,142.27,142.21,3.12649908]
[1768732353459,5.29981298,142.26,142.21,3.12649908]
[1768732353661,9.4678958,142.28,142.21,3.12649908]
[1768732353855,5.2997441,142.27,142.21,3.12649908]
[1768732354056,5.2997441,142.26,142.21,3.12649908]
[1768732354255,9.4678958,142.28,142.21,3.12649908]
[1768732354462,5.29929442,142.27,142.21,3.12649908]
[1768732354762,5.29929442,142.26,142.21,3.12649908]
[1768732354959,9.4678958,142.28,142.21,3.12649908]
[1768732355263,5.29931967,142.27,142.21,3.12649908]
[1768732355564,5.29931967,142.26,142.21,3.12649908]
[1768732355764,9.4678958,142.28,142.21,3.12649908]
[1768732355964,11.62714142,142.27,142.21,3.12649908]
[1768732356166,5.29884142,142.26,142.21,3.12649908]
[1768732356360,6.3283,142.27,142.21,3.12649908]
[1768732356567,5.29844277,142.26,142.21,3.12649908]
[1768732356867,6.3283,142.27,142.21,3.12649908]
[1768732357064,5.29844277,142.26,142.21,3.12649908]
[1768732357265,6.3283,142.27,142.21,3.12649908]
[1768732357465,5.29811122,142.26,142.21,3.12649908]
[1768732357667,6.3283,142.27,142.21,3.12649908]
[1768732357866,5.29811122,142.26,142.21,3.12649908]
[1768732358070,6.3283,142.27,142.21,3.12649908]
[1768732358261,5.29811122,142.26,142.21,3.12649908]
[1768732358460,6.3283,142.27,142.21,3.12649908]
[1768732358670,5.29783953,142.26,142.21,3.12649908]
[1768732358868,6.3283,142.27,142.21,3.12649908]
[1768732359065,5.29783953,142.26,142.21,3.12649908]
[1768732359270,6.3283,142.27,142.21,3.12649908]
[1768732359469,5.29767082,142.26,142.21,3.12649908]
[1768732359670,6.3283,142.27,142.21,3.12649908]
[1768732359871,5.29767082,142.26,142.21,3.12649908]
[1768732360170,6.3283,142.27,142.21,3.12649908]
[1768732360364,5.29773705,142.26,142.21,3.12649908]
[1768732360566,6.3283,142.27,142.21,3.12649908]
[1768732360865,5.29756771,142.26,142.21,3.12649908]
[1768732361066,6.3283,142.27,142.21,3.12649908]
[1768732361268,5.29764814,142.26,142.21,3.12649908]
[1768732361474,6.3283,142.27,142.21,3.12649908]
[1768732361671,5.29753489,142.26,142.21,3.12649908]
[1768732361874,6.3283,142.27,142.21,3.12649908]
[1768732362074,5.29756048,142.26,142.21,3.12649908]
[1768732362274,6.3283,142.27,142.21,3.12649908]
[1768732376489,9.4104582,142.27,142.21,3.12649908]
[1768732381896,3.0821582,142.27,142.21,3.12649908]
[1768732382485,6.3276,142.29,142.21,3.12649908]
[1768732382486,9.4097582,142.29,142.21,3.12649908]
[1768732382685,5.3019649,142.28,142.21,3.12649908]
[1768732382890,9.4097582,142.29,142.21,3.12649908]
[1768732383090,5.30203128,142.28,142.21,3.12649908]
[1768732383287,9.4097582,142.29,142.21,3.12649908]
[1768732383491,5.30191522,142.28,142.21,3.12649908]
[1768732383690,9.4097582,142.29,142.21,3.12649908]
[1768732383890,5.30190263,142.28,142.21,3.12649908]
[1768732384087,5.30190263,142.27,142.21,3.12649908]
[1768732384295,3.0821582,142.25,142.19,3.28566754]
[1768732391500,3.0821582,142.28,142.19,3.28566754]
[1768732391698,8.38381308,142.27,142.19,3.28566754]
[1768732391906,3.0821582,142.27,142.19,3.28566754]
[1768732392095,5.30166022,142.26,142.19,3.28566754]
[1768732392295,3.0821582,142.26,142.19,3.28566754]
[1768732397809,3.0821582,142.26,142.2,3.28566754]
[1768732401111,3.0821582,142.26,142.21,3.28566754]
[1768732402809,3.17106851,142.29,142.21,9.61636754]
[1768732403107,8.47404955,142.28,142.21,9.61636754]
[1768732403306,5.30298104,142.27,142.21,9.61636754]
[1768732403516,8.47404955,142.27,142.21,9.61636754]
[1768732403710,3.17106851,142.27,142.21,9.61636754]
[1768732404918,3.17106851,142.27,142.22,6.3302]
[1768732408117,3.17106851,142.27,142.22,9.47086147]
[1768732409721,3.17106851,142.27,142.22,3.14066147]
[1768732410812,186.64594417,142.31,142.22,3.14066147]
[1768732411020,3.17106851,142.29,142.22,3.14066147]
[1768732411221,5.30271464,142.28,142.22,3.14066147]
[1768732411818,5.30271464,142.28,142.23,3.14066147]
[1768732419131,8.62753571,142.28,142.23,3.14066147]
[1768732419330,5.30271464,142.27,142.23,3.14066147]
[1768732419530,3.32482107,142.28,142.23,3.14066147]
[1768732419730,5.30149434,142.27,142.23,3.14066147]
[1768732420023,3.32482107,142.28,142.23,3.14066147]
[1768732421228,8.62620542,142.27,142.21,3.24481439]
[1768732421531,3.32482107,142.27,142.21,3.24481439]
[1768732423631,3.32482107,142.27,142.21,9.57561439]
[1768732425531,3.32482107,142.27,142.22,3.24481439]
[1768732431937,3.32482107,142.27,142.22,9.57511439]
[1768732434736,3.24195663,142.3,142.22,3.24481439]
[1768732434948,8.54360527,142.29,142.22,3.24481439]
[1768732435143,5.30164864,142.28,142.22,3.24481439]
[1768732435534,5.30164864,142.28,142.24,6.3294]
[1768732441245,5.30164864,142.28,142.25,3.07837582]
[1768732441447,183.5614008,142.31,142.25,3.07837582]
[1768732441652,183.5614008,142.31,142.25,9.40737582]
[1768732441653,5.30324313,142.3,142.25,9.40737582]
[1768732441950,5.30324313,142.29,142.25,9.40737582]
[1768732442250,183.5614008,142.31,142.25,9.40737582]
[1768732442551,5.302344,142.3,142.25,9.40737582]
[1768732442849,5.302344,142.29,142.25,9.40737582]
[1768732443149,183.5614008,142.31,142.25,9.40737582]
[1768732443345,5.30233144,142.3,142.25,9.40737582]
[1768732443542,5.30233144,142.29,142.25,9.40737582]
[1768732443743,183.5614008,142.31,142.25,9.40737582]
[1768732443948,5.30166254,142.3,142.25,9.40737582]
[1768732444148,5.30166254,142.29,142.25,9.40737582]
[1768732444347,183.5614008,142.31,142.25,9.40737582]
[1768732444543,5.30106146,142.3,142.25,9.40737582]
[1768732444749,5.30106146,142.29,142.25,9.40737582]
[1768732444948,183.5614008,142.31,142.25,9.40737582]
[1768732445150,5.30107402,142.3,142.25,9.40737582]
[1768732445349,5.30107402,142.29,142.25,9.40737582]
[1768732445651,3.24195663,142.3,142.25,3.07837582]
[1768732445849,5.30048741,142.29,142.25,3.07837582]
[1768732446041,3.24195663,142.3,142.25,3.07837582]
[1768732446241,5.30047485,142.29,142.25,3.07837582]
[1768732446556,3.24195663,142.3,142.25,3.07837582]
[1768732449958,180.31944417,142.31,142.25,3.07837582]
[1768732450252,5.29864262,142.3,142.25,3.07837582]
[1768732450452,183.5614008,142.31,142.25,3.07837582]
[1768732450752,5.29827677,142.3,142.25,3.07837582]
[1768732450954,183.5614008,142.31,142.25,3.07837582]
[1768732451147,5.29827677,142.3,142.25,3.07837582]
[1768732451447,183.5614008,142.31,142.25,3.07837582]
[1768732451749,5.29797459,142.3,142.25,3.07837582]
[1768732451947,183.5614008,142.31,142.25,3.07837582]
[1768732452147,5.29797095,142.3,142.25,3.07837582]
[1768732452349,183.5614008,142.31,142.25,3.07837582]
[1768732452548,5.29773127,142.3,142.25,3.07837582]
[1768732452756,183.5614008,142.31,142.25,3.07837582]
[1768732452946,5.29773127,142.3,142.25,3.07837582]
[1768732453146,183.5614008,142.31,142.25,3.07837582]
[1768732453346,5.29773127,142.3,142.25,3.07837582]
[1768732453646,183.5614008,142.31,142.25,3.07837582]
[1768732453847,5.29754637,142.3,142.25,3.07837582]
[1768732454146,183.5614008,142.31,142.25,3.07837582]
[1768732454344,5.29754637,142.3,142.25,3.07837582]
[1768732454553,183.5614008,142.31,142.25,3.07837582]
[1768732454757,5.29741372,142.3,142.25,3.07837582]
[1768732454952,183.5614008,142.31,142.25,3.07837582]
[1768732455154,5.29741372,142.3,142.25,3.07837582]
[1768732455453,183.5614008,142.31,142.25,9.40737582]
[1768732455652,5.29730367,142.3,142.25,9.40737582]
[1768732455957,183.5614008,142.31,142.26,3.07837582]
[1768732456862,183.5614008,142.31,142.26,9.40687582]
[1768732462964,183.5614008,142.31,142.27,6.328]
[1768732466872,183.5614008,142.31,142.28,6.3275]
[1768732470672,3.30636597,142.33,142.29,6.3271]
[1768732472175,3.30636597,142.33,142.28,3.26322043]
[1768732473877,3.30636597,142.33,142.28,9.59092043]
[1768732481081,3.30636597,142.33,142.29,6.3272]
[1768732486487,265.22,142.35,142.29,6.3272]
[1768732486784,268.26245568,142.35,142.29,6.3272]
[1768732487278,3.04245568,142.35,142.3,9.47162709]
[1768732490086,3.04245568,142.37,142.3,9.47162709]
[1768732490383,3.04245568,142.37,142.32,3.14492709]
[1768732491779,3.04245568,142.37,142.32,9.47072709]